bitfinex-derivatives/quotes_SOLF0:USTF0_20251122
["timestamp","ask_amount","ask_price","bid_price","bid_amount"]
[1763770906204,15.00985363,128.81,128.8,0.05677011]
[1763770907005,5.90889449,128.81,128.8,0.05677011]
[1763770908500,15.01562412,128.81,128.78,6.9938]
[1763770908804,3.27,128.83,128.77,108.8018]
[1763770909005,9.18253216,128.82,128.77,108.8018]
[1763770909200,3.27,128.82,128.77,108.8018]
[1763770909605,0.05458499,128.81,128.8,6.9928]
[1763770913208,0.05458499,128.81,128.8,23.4128]
[1763770918809,9.25274021,128.81,128.8,23.4128]
[1763770919010,9.25274021,128.81,128.8,16.42]
[1763770919408,11.78204521,128.81,128.78,0.05680098]
[1763770919607,0.05458499,128.81,128.78,0.05680098]
[1763770920610,0.05458499,128.81,128.8,6.9928]
[1763770921602,5.98411178,128.81,128.8,6.9928]
[1763770921806,0.05458499,128.81,128.8,6.9928]
[1763770922012,3.32458499,128.81,128.78,7.05010098]
[1763770922408,3.32458499,128.81,128.78,0.05680098]
[1763770922608,3.32458499,128.81,128.79,6.9933]
[1763770923009,5.93009646,128.8,128.78,7.05060098]
[1763770923321,5.93051771,128.79,128.78,7.05060098]
[1763770923609,12.02303733,128.79,128.78,7.05060098]
[1763770926304,15.25303733,128.79,128.78,0.05680098]
[1763770926614,3.23,128.78,128.7,108.8603]
[1763770926813,3.23,128.76,128.68,108.872]
[1763770927012,3.23,128.74,128.69,23.4185]
[1763770927219,3.23,128.72,128.68,108.8772]
[1763770927813,3.23,128.75,128.71,6.9975]
[1763770928017,3.23,128.73,128.71,6.9975]
[1763770928219,3.28908873,128.73,128.71,0.05230866]
[1763770929215,3.23,128.71,128.66,16.42]
[1763770929615,3.23,128.69,128.62,108.923]
[1763770929815,3.23,128.69,128.63,7.0017]
[1763770930019,3.23,128.69,128.64,108.9114]
[1763770930217,0.05076075,128.68,128.65,0.05009916]
[1763770930421,3.28076075,128.68,128.65,0.05009916]
[1763770930830,0.05076075,128.68,128.65,0.05009916]
[1763770931025,3.28076075,128.68,128.66,7.0002]
[1763770931913,0.05076075,128.68,128.66,7.0002]
[1763770936719,0.05076075,128.68,128.65,0.05009916]
[1763770936926,0.05076075,128.68,128.65,16.47009916]
[1763770937527,0.05076075,128.68,128.66,7.0002]
[1763770937916,3.23,128.74,128.7,6.998]
[1763770938634,3.23,128.74,128.71,6.9975]
[1763770939126,3.27911447,128.74,128.71,7.05257915]
[1763770940224,3.27911447,128.74,128.72,6.997]
[1763770940225,0.04911447,128.74,128.72,6.997]
[1763770941723,3.23,128.8,128.76,6.9947]
[1763770942729,0.05564066,128.79,128.77,0.05045634]
[1763770942932,3.28564066,128.79,128.77,0.05045634]
[1763770945934,0.05564066,128.79,128.77,0.05045634]
[1763770946231,3.28564066,128.79,128.77,0.05045634]
[1763770946633,0.05564066,128.79,128.77,0.05045634]
[1763770947223,0.05564066,128.79,128.77,7.04475634]
[1763770948828,3.28564066,128.79,128.77,0.05045634]
[1763770949036,0.05564066,128.79,128.77,0.05045634]
[1763770949733,0.05564066,128.79,128.77,7.04465634]
[1763770952832,3.28564066,128.79,128.74,6.9958]
[1763770953134,3.28564066,128.79,128.71,125.2697]
[1763770953435,3.23,128.77,128.71,16.42]
[1763770953737,3.23,128.75,128.71,16.42]
[1763770953938,0.05708753,128.74,128.72,0.0587083]
[1763770954139,0.05708753,128.74,128.72,7.0557083]
[1763770959632,0.05708753,128.74,128.72,0.0587083]
[1763770960738,0.05708753,128.74,128.72,7.0557083]
[1763770965345,3.08,128.79,128.77,6.9943]
[1763770965551,3.08,128.8,128.77,6.9943]
[1763770966454,3.13720526,128.8,128.77,0.05193182]
[1763770966844,3.08,128.78,128.77,0.05193182]
[1763770968148,3.08,128.79,128.77,0.05193182]
[1763770968750,3.08,128.79,128.77,7.04623182]
[1763770968945,3.13720526,128.8,128.77,7.04623182]
[1763770969854,3.13720526,128.8,128.77,0.05193182]
[1763770971553,3.08,128.78,128.74,6.9955]
[1763770972746,3.13229784,128.77,128.75,0.05101918]
[1763770975659,3.13229784,128.77,128.71,16.44]
[1763770975868,3.08,128.75,128.71,16.44]
[1763770976258,3.08,128.75,128.71,23.4373]
[1763770976666,3.13863053,128.74,128.72,0.05578609]
[1763770977154,10.13463053,128.74,128.72,0.05578609]
[1763770977459,0.05863053,128.74,128.68,16.44]
[1763770977958,3.13863053,128.74,128.71,6.9976]
[1763770978352,3.13863053,128.74,128.71,7.05602592]
[1763770978952,3.13863053,128.74,128.72,6.997]
[1763770978953,0.05863053,128.74,128.72,6.997]
[1763770979154,3.13863053,128.74,128.72,6.997]
[1763770979350,0.05863053,128.74,128.72,6.997]
[1763770980362,0.05863053,128.74,128.72,9.03695525]
[1763770980961,0.05863053,128.74,128.71,7.05602592]
[1763770980962,3.13863053,128.74,128.71,7.05602592]
[1763770981162,3.08,128.73,128.65,108.8996]
[1763770981363,3.08,128.71,128.65,18.47995525]
[1763770981671,5.91059023,128.7,128.65,16.44]
[1763770981853,3.08,128.68,128.65,16.44]
[1763770982058,3.08,128.68,128.65,23.4406]
[1763770982251,3.13231733,128.68,128.65,23.4406]
[1763770984166,0.05231733,128.68,128.66,7.0001]
[1763770985458,3.18,128.74,128.7,6.998]
[1763770985766,15.1212831,128.73,128.67,108.8802]
[1763770985959,3.18,128.73,128.67,108.8802]
[1763770986465,3.23558157,128.71,128.69,0.05175766]
[1763770986659,3.2344264,128.71,128.69,0.05175766]
[1763770987562,0.0544264,128.71,128.69,0.05175766]
[1763770988269,0.0544264,128.71,128.69,7.05045766]
[1763770989965,3.2344264,128.71,128.69,7.05045766]
[1763770991363,0.0544264,128.71,128.69,7.05045766]
[1763770996567,3.18,128.77,128.73,6.9963]
[1763770996767,9.17855722,128.76,128.73,6.9963]
[1763770997070,3.18,128.76,128.73,6.9963]
[1763770997567,3.18,128.74,128.73,0.05796457]
[1763770998068,3.23412336,128.76,128.73,0.05796457]
[1763770998257,3.18,128.74,128.73,0.05796457]
[1763770999770,3.18,128.75,128.73,0.05796457]
[1763771002172,3.18,128.73,128.7,6.9976]
[1763771002376,3.18,128.73,128.68,6.9988]
[1763771002675,108.8137,128.76,128.68,6.9988]
[1763771002676,3.18,128.71,128.68,6.9988]
[1763771003265,3.23771732,128.71,128.68,7.05320384]
[1763771003868,3.23771732,128.71,128.6,108.9412]
[1763771003869,3.18,128.7,128.6,108.9412]
[1763771004064,3.18,128.69,128.6,108.9412]
[1763771004372,3.18,128.69,128.56,108.9799]
[1763771004373,3.18,128.66,128.56,108.9799]
[1763771004567,3.18,128.66,128.58,108.9624]
[1763771004874,0.05397855,128.63,128.59,108.954]
[1763771005071,116.0543293,128.71,128.63,108.9206]
[1763771005072,3.18,128.69,128.63,108.9206]
[1763771005272,6.37377224,128.68,128.63,125.4006]
[1763771005474,3.18,128.69,128.63,125.4006]
[1763771005669,6.37058472,128.68,128.63,125.4006]
[1763771005881,3.18,128.69,128.63,125.4006]
[1763771006178,0.0544949,128.67,128.65,0.05077593]
[1763771006573,0.0544949,128.67,128.65,7.05167593]
[1763771008979,0.0544949,128.67,128.66,16.48]
[1763771010693,3.18,128.74,128.69,6.9987]
[1763771010879,9.36664875,128.73,128.69,6.9987]
[1763771011076,3.18,128.73,128.69,6.9987]
[1763771011272,3.18,128.73,128.69,23.4787]
[1763771011573,0.05197356,128.72,128.7,0.05831034]
[1763771014581,0.05197356,128.72,128.7,7.05611034]
[1763771015285,3.20197356,128.72,128.7,0.05831034]
[1763771015492,9.3053794,128.71,128.7,0.05831034]
[1763771015788,15.21672787,128.71,128.7,0.05831034]
[1763771016890,3.15,128.7,128.66,23.46]
[1763771017289,3.15,128.7,128.66,16.46]
[1763771017593,3.15,128.7,128.62,114.59516603]
[1763771017594,3.15,128.68,128.64,7.0011]
[1763771017893,6.21775014,128.67,128.65,0.05016311]
[1763771018096,0.05795907,128.67,128.65,0.05016311]
[1763771019195,3.20795907,128.67,128.65,0.05016311]
[1763771021602,9.31402062,128.66,128.65,0.05016311]
[1763771022800,15.23152148,128.66,128.65,0.05016311]
[1763771023387,3.15,128.65,128.6,7.0032]
[1763771023591,3.15,128.63,128.6,7.0032]
[1763771024005,6.16475807,128.62,128.58,7.0046]
[1763771024309,3.15,128.6,128.54,127.49414757]
[1763771024600,0.05309917,128.58,128.54,18.50274757]
[1763771024796,0.05309917,128.58,128.54,16.46]
[1763771025002,3.20309917,128.58,128.54,16.46]
[1763771025303,3.20309917,128.58,128.51,125.4798]
[1763771025497,3.20309917,128.58,128.52,109.0129]
[1763771025695,3.20309917,128.58,128.54,7.0067]
[1763771026089,0.05309917,128.58,128.54,108.9969]
[1763771026300,0.05309917,128.58,128.55,7.0061]
[1763771026896,3.20309917,128.58,128.51,16.46]
[1763771027500,3.20309917,128.58,128.52,7.0078]
[1763771028501,3.15,128.57,128.51,16.46]
[1763771028703,3.15,128.54,128.51,16.46]
[1763771028898,3.15,128.54,128.5,7.0088]
[1763771029105,3.15,128.54,128.49,7.0093]
[1763771029303,0.05553237,128.53,128.5,109.0293]
[1763771029505,3.15,128.6,128.54,108.9969]
[1763771030395,0.0592428,128.58,128.56,0.05707057]
[1763771030592,0.0592428,128.58,128.56,7.06267057]
[1763771032302,0.0592428,128.58,128.56,23.54267057]
[1763771032502,3.2092428,128.58,128.56,7.06267057]
[1763771033510,0.0592428,128.58,128.56,7.06267057]
[1763771037694,3.2092428,128.58,128.56,7.06267057]
[1763771038294,3.2092428,128.58,128.56,0.05707057]
[1763771041309,3.15,128.57,128.46,109.0601]
[1763771041496,110.5857428,128.58,128.46,109.0601]
[1763771041497,3.15,128.55,128.46,109.0601]
[1763771041698,3.15,128.55,128.49,7.0093]
[1763771042308,0.0577662,128.53,128.5,109.0301]
[1763771043213,0.0577662,128.53,128.51,7.0083]
[1763771044914,3.15,128.59,128.55,7.006]
[1763771046016,0.05205097,128.58,128.56,0.0577662]
[1763771046218,3.20205097,128.58,128.56,0.0577662]
[1763771047913,0.05205097,128.58,128.56,0.0577662]
[1763771050118,3.20205097,128.58,128.56,0.0577662]
[1763771050509,3.20205097,128.58,128.52,7.0078]
[1763771050510,3.15,128.57,128.52,7.0078]
[1763771050811,3.15,128.57,128.51,16.48]
[1763771051515,3.2064646,128.55,128.51,16.48]
[1763771051922,3.2064646,128.55,128.5,7.0087]
[1763771052718,3.15,128.54,128.5,7.0087]
[1763771053420,10.1572,128.54,128.48,7.0097]
[1763771056619,0.04955918,128.46,128.44,7.0124]
[1763771056918,3.15,128.52,128.44,125.5576]
[1763771057123,3.15,128.51,128.44,16.48]
[1763771057312,3.15,128.5,128.45,7.0114]
[1763771057514,3.15,128.49,128.44,16.48]
[1763771057722,0.05084463,128.48,128.45,0.04955918]
[1763771057924,3.15,128.47,128.45,0.04955918]
[1763771059525,0.05084463,128.48,128.45,0.04955918]
[1763771060120,3.20084463,128.48,128.46,7.0111]
[1763771060320,3.20084463,128.48,128.45,0.04955918]
[1763771063218,0.05084463,128.48,128.45,0.04955918]
[1763771063416,3.20084463,128.48,128.45,0.04955918]
[1763771065629,3.20084463,128.48,128.45,7.06125918]
[1763771066422,3.20084463,128.48,128.46,7.0112]
[1763771066626,0.05084463,128.48,128.46,7.0112]
[1763771069534,3.20084463,128.48,128.45,0.04955918]
[1763771069834,9.04162246,128.47,128.45,0.04955918]
[1763771070035,3.15,128.47,128.45,0.04955918]
[1763771070429,3.20084463,128.48,128.45,0.04955918]
[1763771071027,5.88988313,128.47,128.45,0.04955918]
[1763771071231,3.15,128.46,128.45,0.04955918]
[1763771075427,3.04084463,128.48,128.45,0.04955918]
[1763771075638,2.99,128.47,128.45,0.04955918]
[1763771075838,3.04084463,128.48,128.45,0.04955918]
[1763771076533,3.04084463,128.48,128.45,7.06135918]
[1763771076725,3.04084463,128.48,128.45,0.04955918]
[1763771077834,0.05084463,128.48,128.45,125.57865918]
[1763771078026,3.04084463,128.48,128.45,16.50955918]
[1763771078225,3.04084463,128.48,128.46,7.0112]
[1763771078425,0.05084463,128.48,128.46,7.0112]
[1763771078840,3.04084463,128.48,128.46,7.0112]
[1763771079541,3.04084463,128.48,128.45,16.50955918]
[1763771080231,3.04084463,128.48,128.45,0.04955918]
[1763771083439,3.04084463,128.48,128.45,7.06125918]
[1763771083646,0.05084463,128.48,128.45,0.04955918]
[1763771085035,3.04084463,128.48,128.45,0.04955918]
[1763771085639,3.04084463,128.48,128.46,7.0111]
[1763771086139,0.05084463,128.48,128.46,7.0111]
[1763771087433,3.04084463,128.48,128.46,7.0111]
[1763771088331,3.04084463,128.48,128.45,0.04955918]
[1763771088744,0.05084463,128.48,128.45,0.04955918]
[1763771089745,0.05084463,128.48,128.46,7.0112]
[1763771098246,3.04084463,128.48,128.45,16.50955918]
[1763771098449,2.99,128.46,128.45,0.04955918]
[1763771098649,8.94280298,128.46,128.45,0.04955918]
[1763771099659,2.99,128.46,128.45,0.04955918]
[1763771099949,8.92118944,128.46,128.45,0.04955918]
[1763771100454,14.80209667,128.46,128.45,0.04955918]
[1763771100654,14.80317822,128.46,128.45,0.04955918]
[1763771101249,5.93227099,128.46,128.45,0.04955918]
[1763771101452,8.92227099,128.46,128.45,0.04955918]
[1763771101646,14.66860987,128.46,128.45,0.04955918]
[1763771102050,0.05084463,128.48,128.45,0.04955918]
[1763771103052,0.05084463,128.48,128.46,7.0111]
[1763771104851,3.04084463,128.48,128.45,0.04955918]
[1763771105051,2.99,128.46,128.45,0.04955918]
[1763771105252,14.65069315,128.46,128.45,0.04955918]
[1763771105447,3.31,128.45,128.41,7.0139]
[1763771105650,3.31,128.42,128.35,127.66013071]
[1763771105846,3.31,128.4,128.35,16.46]
[1763771106045,9.22837837,128.39,128.35,23.4768]
[1763771106251,3.31,128.35,128.28,109.2154]
[1763771106447,5.74400615,128.37,128.35,109.158]
[1763771106651,2.04803071,128.42,128.35,109.158]
[1763771106652,3.31,128.42,128.36,111.19623071]
[1763771106852,0.05141944,128.4,128.36,111.19623071]
[1763771107047,3.36141944,128.4,128.35,16.48]
[1763771107252,3.36141944,128.4,128.33,1.35553608]
[1763771107253,3.36141944,128.4,128.33,127.70033071]
[1763771107458,0.05141944,128.4,128.37,7.0159]
[1763771107661,0.05141944,128.4,128.37,18.54803071]
[1763771107956,0.05141944,128.4,128.38,7.0153]
[1763771108855,0.05141944,128.4,128.38,116.1481]
[1763771109050,3.31,128.46,128.4,7.0141]
[1763771109460,3.31,128.46,128.39,111.16993071]
[1763771109658,3.31,128.46,128.4,109.1151]
[1763771109954,3.31,128.46,128.41,23.5137]
[1763771110161,0.05695623,128.45,128.42,0.05141944]
[1763771110458,0.05695623,128.45,128.42,2.09945015]
[1763771111556,0.05695623,128.45,128.43,7.0126]
[1763771113155,0.05695623,128.45,128.44,16.5]
[1763771115559,3.36695623,128.45,128.42,0.05141944]
[1763771115759,0.05695623,128.45,128.42,2.09945015]
[1763771116360,0.05695623,128.45,128.42,9.11265015]
[1763771116561,0.05695623,128.45,128.42,2.09945015]
[1763771116762,0.05695623,128.45,128.43,16.5]
[1763771117665,0.05695623,128.45,128.42,18.59945015]
[1763771117862,3.36695623,128.45,128.42,0.05141944]
[1763771118865,0.05695623,128.45,128.42,0.05141944]
[1763771119458,3.36695623,128.45,128.42,0.05141944]
[1763771119666,3.31,128.5,128.44,2.04803071]
[1763771119861,3.31,128.48,128.44,2.04803071]
[1763771120562,3.31,128.48,128.43,16.5]
[1763771120764,3.31,128.46,128.4,18.58803071]
[1763771120969,3.31,128.46,128.44,0.05509416]
[1763771121264,3.36902847,128.46,128.44,0.05509416]
[1763771121467,3.31,128.45,128.38,2.04803071]
[1763771121775,3.31,128.43,128.37,18.58803071]
[1763771122064,9.32936352,128.42,128.37,18.58803071]
[1763771122265,3.31,128.42,128.38,7.0154]
[1763771122570,0.04924418,128.41,128.39,2.09822666]
[1763771122770,0.05232213,128.41,128.39,2.09822666]
[1763771123663,0.05232213,128.41,128.4,7.0142]
[1763771125166,0.05232213,128.41,128.4,23.5542]
[1763771132274,15.17549015,128.45,128.41,7.0136]
[1763771132579,3.31,128.45,128.41,7.0136]
[1763771133076,9.05863071,128.48,128.42,7.0133]
[1763771133077,0.05640116,128.44,128.42,7.0133]
[1763771133378,0.05640116,128.44,128.42,7.06727931]
[1763771134474,3.36640116,128.44,128.42,0.05397931]
[1763771134979,9.12899908,128.43,128.42,0.05397931]
[1763771136679,6.08899908,128.43,128.42,0.05397931]
[1763771136881,0.05640116,128.44,128.42,0.05397931]
[1763771137596,0.05640116,128.44,128.42,7.06737931]
[1763771144593,3.19640116,128.44,128.42,7.06737931]
[1763771144798,3.19640116,128.44,128.42,0.05397931]
[1763771145000,0.05640116,128.44,128.42,0.05397931]
[1763771146098,0.05640116,128.44,128.42,7.06737931]
[1763771147398,3.19640116,128.44,128.42,0.05397931]
[1763771148493,3.14,128.42,128.38,18.52803071]
[1763771148693,3.14,128.42,128.38,16.48]
[1763771148898,3.14,128.42,128.39,7.0148]
[1763771149194,3.14,128.39,128.33,1.35556248]
[1763771149400,3.18968272,128.37,128.35,0.04957889]
[1763771149902,6.88350618,128.36,128.35,0.04957889]
[1763771150800,0.04968272,128.37,128.35,0.04957889]
[1763771151100,0.04968272,128.37,128.35,7.06677889]
[1763771152699,3.18968272,128.37,128.35,0.04957889]
[1763771153892,0.04968272,128.37,128.35,0.04957889]
[1763771154604,0.04968272,128.37,128.35,7.06677889]
[1763771155802,0.04968272,128.37,128.36,16.54]
[1763771160995,3.14,128.42,128.38,7.0156]
[1763771162002,0.05792958,128.41,128.39,0.05039188]
[1763771162206,3.19792958,128.41,128.39,0.05039188]
[1763771165600,0.05792958,128.41,128.39,0.05039188]
[1763771167603,0.05792958,128.41,128.39,7.06539188]
[1763771170116,3.31792958,128.41,128.39,0.05039188]
[1763771171201,10.33202958,128.41,128.39,0.00039188]
[1763771171408,3.26,128.39,128.33,16.52]
[1763771171704,3.26,128.37,128.33,16.52]
[1763771172409,3.20567077,128.4,128.34,0.05091517]
[1763771172410,0.05572823,128.36,128.34,0.05091517]
[1763771173013,3.31572823,128.36,128.34,0.05091517]
[1763771173310,0.05572823,128.36,128.34,0.05091517]
[1763771174604,3.31572823,128.36,128.34,0.05091517]
[1763771175008,0.05572823,128.36,128.34,0.05091517]
[1763771176211,0.05572823,128.36,128.34,7.06861517]
[1763771178122,3.31572823,128.36,128.34,0.05091517]
[1763771179408,3.31572823,128.36,128.28,109.2163]
[1763771179715,3.26,128.35,128.28,23.5407]
[1763771180118,3.26,128.35,128.28,16.52]
[1763771180525,0.05292854,128.33,128.3,109.1996]
[1763771181323,0.05292854,128.33,128.31,16.52]
[1763771181724,0.05292854,128.33,128.31,23.5393]
[1763771182824,3.26,128.38,128.34,7.0173]
[1763771183011,3.26,128.38,128.34,16.52]
[1763771183514,3.26,128.41,128.36,7.0165]
[1763771183720,3.26,128.39,128.36,7.0165]
[1763771183916,3.31137809,128.39,128.36,7.06942854]
[1763771184528,3.31137809,128.39,128.37,7.016]
[1763771184718,0.05137809,128.39,128.37,7.016]
[1763771185223,3.31137809,128.39,128.37,7.016]
[1763771185420,0.05137809,128.39,128.36,0.05292854]
[1763771186518,0.05137809,128.39,128.37,7.0159]
[1763771186918,3.31137809,128.39,128.37,7.0159]
[1763771187629,3.31137809,128.39,128.36,0.05292854]
[1763771188029,10.32657809,128.39,128.36,0.05292854]
[1763771188226,9.13078478,128.38,128.36,0.05292854]
[1763771188524,9.13148789,128.37,128.36,0.05292854]
[1763771189029,3.26,128.36,128.32,7.0184]
[1763771189631,3.26,128.36,128.33,7.0183]
[1763771189927,3.318307,128.36,128.33,7.0183]
[1763771191125,0.058307,128.36,128.34,7.0177]
[1763771191321,0.058307,128.36,128.35,16.52]
[1763771194631,3.368307,128.36,128.35,16.52]
[1763771194929,3.368307,128.36,128.34,7.0177]
[1763771195628,0.058307,128.36,128.34,7.0177]
[1763771197937,0.058307,128.36,128.35,16.5]
[1763771200828,0.058307,128.36,128.31,109.192]
[1763771200829,3.128307,128.36,128.31,109.192]
[1763771201026,0.058307,128.36,128.32,125.6833]
[1763771202627,0.058307,128.36,128.34,7.0177]
[1763771203339,3.128307,128.36,128.34,7.0177]
[1763771203530,3.128307,128.36,128.32,16.5]
[1763771204135,3.128307,128.36,128.33,7.0183]
[1763771206235,0.058307,128.36,128.34,7.0178]
[1763771206433,0.058307,128.36,128.35,16.5]
[1763771207326,0.058307,128.36,128.35,23.5173]
[1763771207740,9.00184704,128.36,128.35,16.5]
[1763771209035,3.07,128.35,128.32,16.5]
[1763771209238,3.07,128.35,128.32,7.0184]
[1763771209434,0.058307,128.36,128.32,23.5184]
[1763771209629,3.07,128.34,128.32,23.5184]
[1763771209938,3.128307,128.36,128.33,7.0183]
[1763771210127,5.8730801,128.35,128.33,7.0183]
[1763771210330,3.128307,128.36,128.33,7.0183]
[1763771210531,8.94249768,128.35,128.33,7.0183]
[1763771210831,3.07,128.35,128.33,7.0183]
[1763771211031,3.07,128.35,128.32,16.5]
[1763771211231,8.94168926,128.34,128.29,16.5]
[1763771211431,3.12854778,128.33,128.29,16.5]
[1763771212538,3.12854778,128.33,128.29,23.5205]
[1763771213840,3.12854778,128.33,128.29,16.5]
[1763771214536,3.12854778,128.33,128.31,7.0194]
[1763771216843,3.12854778,128.33,128.29,16.5]
[1763771217943,3.12854778,128.33,128.26,1.35619641]
[1763771217944,3.07,128.29,128.26,1.35619641]
[1763771218148,3.11972306,128.29,128.23,109.2581]
[1763771218336,0.04972306,128.29,128.26,109.2339]
[1763771218536,0.04972306,128.29,128.26,125.7739]
[1763771218744,0.04972306,128.29,128.27,7.0216]
[1763771221237,0.04972306,128.29,128.27,23.5616]
[1763771222645,3.07,128.36,128.3,109.1977]
[1763771222842,5.12325772,128.39,128.31,127.78245772]
[1763771223048,11.75929257,128.38,128.31,127.78245772]
[1763771223251,11.75931286,128.37,128.31,127.78245772]
[1763771223542,12.13845772,128.39,128.31,127.78245772]
[1763771223748,0.05202811,128.35,128.33,0.04972306]
[1763771224348,0.05202811,128.35,128.33,7.06772306]
[1763771229951,0.05202811,128.35,128.33,0.04972306]
[1763771230157,3.20202811,128.35,128.33,0.04972306]
[1763771230558,3.15,128.34,128.33,0.04972306]
[1763771230970,7.0184,128.33,128.29,9.07345772]
[1763771231267,3.15,128.32,128.29,9.07345772]
[1763771232172,3.20022989,128.32,128.29,9.07345772]
[1763771232971,3.15,128.31,128.28,16.52]
[1763771233868,3.15,128.31,128.28,23.541]
[1763771235576,0.05022989,128.32,128.3,7.0198]
[1763771235974,0.05022989,128.32,128.31,2.05325772]
[1763771236877,0.05022989,128.32,128.31,18.57325772]
[1763771237078,8.96590615,128.36,128.31,127.76365772]
[1763771237279,3.15,128.36,128.31,127.76365772]
[1763771237474,5.60620324,128.38,128.31,127.76365772]
[1763771237676,5.81697448,128.37,128.31,127.76365772]
[1763771237879,3.15,128.38,128.31,127.76365772]
[1763771238076,0.05611468,128.36,128.33,0.05022989]
[1763771238374,0.05611468,128.36,128.33,2.10348761]
[1763771238578,0.05611468,128.36,128.34,7.0177]
[1763771239980,0.05611468,128.36,128.34,23.5377]
[1763771240383,3.20611468,128.36,128.34,16.52]
[1763771241374,3.20611468,128.36,128.33,7.06852989]
[1763771242178,0.05611468,128.36,128.33,7.06852989]
[1763771242476,0.05611468,128.36,128.34,7.0176]
[1763771244385,3.20611468,128.36,128.33,0.05022989]
[1763771245281,5.82203853,128.35,128.33,0.05022989]
[1763771245484,3.15,128.35,128.33,0.05022989]
[1763771246689,3.15,128.34,128.33,0.05022989]
[1763771247889,10.1678,128.34,128.29,7.02]
[1763771248186,10.1678,128.34,128.28,16.5]
[1763771248187,3.15,128.32,128.28,16.5]
[1763771249083,0.05345091,128.31,128.28,16.5]
[1763771249276,3.20345091,128.31,128.28,18.55325772]
[1763771249686,3.20345091,128.31,128.28,25.57425772]
[1763771250590,0.05345091,128.31,128.29,9.07365772]
[1763771251488,0.05345091,128.31,128.29,7.0204]
[1763771251687,3.20345091,128.31,128.29,9.07365772]
[1763771252085,0.05345091,128.31,128.29,9.07365772]
[1763771253887,0.05345091,128.31,128.29,7.0204]
[1763771254091,0.05345091,128.31,128.3,2.05325772]
[1763771255083,0.05345091,128.31,128.29,7.0204]
[1763771255290,0.05345091,128.31,128.3,2.05325772]
[1763771261580,0.05345091,128.31,128.29,23.5204]
[1763771261780,0.05345091,128.31,128.3,2.05325772]
[1763771264399,0.05345091,128.31,128.3,9.07325772]
[1763771267906,0.05345091,128.31,128.3,7.02]
[1763771268103,0.05345091,128.31,128.3,9.07325772]
[1763771269806,5.8336326,128.33,128.3,111.25195772]
[1763771270008,3.09,128.37,128.32,2.05325772]
[1763771270207,3.09,128.37,128.34,2.05325772]
[1763771270600,3.09,128.37,128.34,9.07095772]
[1763771270801,3.14567372,128.37,128.34,2.10670863]
[1763771271001,3.14567372,128.37,128.34,0.05345091]
[1763771271202,3.14567372,128.37,128.35,9.07045772]
[1763771272609,0.05567372,128.37,128.35,9.07045772]
[1763771274212,0.05567372,128.37,128.35,2.05325772]
[1763771274811,0.05567372,128.37,128.34,0.05345091]
[1763771276615,0.05567372,128.37,128.34,7.07115091]
[1763771278613,0.05567372,128.37,128.35,7.0172]
[1763771283416,3.14567372,128.37,128.35,7.0172]
[1763771283619,0.05567372,128.37,128.35,7.0172]
[1763771283917,0.05567372,128.37,128.36,7.0167]
[1763771284119,10.37517243,128.42,128.36,10.22273463]
[1763771284310,8.91267497,128.41,128.36,3.20603463]
[1763771284508,8.91267497,128.4,128.37,7.0161]
[1763771284716,5.82267497,128.39,128.37,7.0161]
[1763771285019,3.09,128.4,128.37,7.0161]
[1763771285215,5.82182912,128.39,128.37,7.07372731]
[1763771285411,0.05530803,128.4,128.38,7.0155]
[1763771285602,0.05530803,128.4,128.38,10.22153463]
[1763771286217,0.05530803,128.4,128.38,3.20603463]
[1763771286414,3.26,128.38,128.37,0.05762731]
[1763771286617,9.04291228,128.38,128.37,0.05762731]
[1763771286805,3.26,128.38,128.37,0.05762731]
[1763771287010,9.04237123,128.38,128.37,0.05762731]
[1763771287718,3.26,128.38,128.37,0.05762731]
[1763771287920,3.26,128.39,128.37,0.05762731]
[1763771289915,14.7736686,128.38,128.37,0.05762731]
[1763771294617,11.5136686,128.38,128.37,0.05762731]
[1763771294820,3.31530803,128.4,128.37,0.05762731]
[1763771295212,3.26,128.38,128.37,0.05762731]
[1763771295421,14.77830816,128.38,128.37,0.05762731]
[1763771295618,3.26,128.37,128.32,19.70603463]
[1763771295818,3.26,128.37,128.32,16.5]
[1763771296025,3.26,128.35,128.29,3.20603463]